bitfinex/quotes_ETHUSD_20250526
["timestamp","ask_amount","ask_price","bid_price","bid_amount"]
[1748221543238,9.92860074,2561.3,2560.9,0.61240885]
[1748221543442,6.02425425,2561.0,2560.8,4.594]
[1748221543610,6.02425425,2561.0,2560.9,3.897]
[1748221544247,8.7859,2560.9,2560.1,0.71240885]
[1748221544459,8.7859,2560.9,2560.4,4.594]
[1748221546364,6.02425425,2560.7,2560.5,3.897]
[1748221546659,0.99293034,2560.6,2560.4,3.897]
[1748221546904,4.89834425,2560.6,2560.3,3.897]
[1748221547013,6.02425425,2560.4,2560.2,4.591]
[1748221547352,8.0,2560.3,2560.2,3.897]
[1748221547649,8.39040267,2560.3,2560.2,3.897]
[1748221547839,10.29814537,2560.3,2560.2,3.897]
[1748221548537,9.81513034,2560.6,2560.2,3.897]
[1748221549109,6.02425425,2560.7,2560.3,0.8038]
[1748221550148,0.39262463,2560.9,2560.3,0.8038]
[1748221550314,8.0,2560.9,2560.3,0.8038]
[1748221551152,8.0,2560.9,2560.4,3.898]
[1748221551840,8.0,2560.9,2560.3,0.8038]
[1748221552039,1.48110543,2560.8,2560.5,3.898]
[1748221552446,1.48110543,2560.8,2560.3,0.8038]
[1748221552616,6.02425425,2560.7,2560.4,3.898]
[1748221552947,3.90534687,2560.6,2560.4,3.898]
[1748221553153,6.02425425,2560.7,2560.4,3.898]
[1748221553154,4.898482,2560.5,2560.4,3.898]
[1748221553445,1.79026011,2560.5,2560.4,3.898]
[1748221554246,0.99296011,2560.5,2560.4,3.898]
[1748221554468,4.70252633,2560.7,2560.4,3.898]
[1748221554760,3.90535007,2560.6,2560.3,3.899]
[1748221555139,8.0,2560.4,2560.1,4.692]
[1748221555321,8.0,2560.4,2560.2,3.899]
[1748221555657,11.90576286,2560.4,2560.2,3.899]
[1748221555862,1.79300171,2560.3,2560.2,3.899]
[1748221556725,1.79300171,2560.3,2560.1,0.1]
[1748221556959,0.7973,2560.7,2560.2,4.6776]
[1748221557160,9.48110543,2560.8,2560.2,4.6776]
[1748221558491,1.48110543,2560.8,2560.2,4.6776]
[1748221558696,9.07153007,2561.2,2560.4,0.8038]
[1748221558895,1.07153007,2561.2,2560.5,3.899]
[1748221559098,4.97596781,2561.2,2560.5,3.899]
[1748221559391,8.0,2561.1,2560.5,3.899]
[1748221560197,11.90458355,2561.1,2560.5,3.899]
[1748221560398,1.33695126,2561.0,2560.5,3.899]
[1748221561218,1.33695126,2561.0,2560.4,0.8038]
[1748221561395,8.0,2560.8,2560.5,3.899]
[1748221562115,11.90506427,2560.8,2560.5,3.899]
[1748221562286,1.26933643,2560.7,2560.5,3.899]
[1748221562486,1.26933643,2560.7,2560.6,3.899]
[1748221562882,13.1245186,2560.7,2560.6,3.899]
[1748221563084,9.21933643,2560.7,2560.6,3.899]
[1748221563419,15.24359068,2560.7,2560.6,3.899]
[1748221563720,3.90571124,2560.4,2560.1,0.1]
[1748221564018,14.02425425,2560.3,2560.2,3.899]
[1748221564184,1.91486899,2560.6,2560.2,4.6738]
[1748221564524,8.0,2560.6,2560.2,4.6738]
[1748221565687,2.04433643,2560.7,2560.3,3.899]
[1748221566085,8.0,2560.6,2560.1,0.1]
[1748221566421,17.92967288,2560.6,2560.2,3.899]
[1748221566592,14.02425425,2560.6,2560.2,3.899]
[1748221566789,1.60685907,2560.5,2560.2,3.899]
[1748221571128,1.60685907,2560.5,2560.1,4.693]
[1748221571334,1.60685907,2560.5,2560.2,3.899]
[1748221571539,1.60685907,2560.5,2560.3,3.899]
[1748221571540,5.51239248,2560.5,2560.3,3.899]
[1748221572109,5.51239248,2560.5,2560.1,0.1]
[1748221572324,1.95366467,2560.4,2560.2,3.899]
[1748221574938,10.07,2560.9,2560.3,0.8038]
[1748221575147,1.20619902,2561.2,2560.3,0.8038]
[1748221575435,4.71800004,2560.7,2560.4,8.486]
[1748221575640,0.8128,2560.7,2560.5,3.899]
[1748221575838,0.47178801,2560.6,2560.5,3.899]
[1748221576019,8.0,2560.7,2560.5,3.899]
[1748221578736,0.7509,2561.1,2560.6,0.8038]
[1748221579047,4.65555228,2561.1,2560.6,0.8038]
[1748221580117,3.90477033,2561.0,2560.6,0.8038]
[1748221580318,8.0,2560.9,2560.4,0.767]
[1748221580523,3.9051823,2560.7,2560.2,1.22705989]
[1748221580733,8.0,2560.7,2560.3,8.486]
[1748221583152,8.0,2560.7,2560.2,0.767]
[1748221583450,17.92990101,2560.4,2560.1,0.1]
[1748221583742,0.38850053,2561.2,2560.3,3.899]
[1748221584046,6.82535425,2561.3,2560.4,0.7873]
[1748221584243,8.0,2561.2,2560.4,0.7873]
[1748221584946,6.02425425,2560.7,2560.2,0.8034]
[1748221585121,9.92951749,2560.7,2560.3,3.899]
[1748221585321,8.0,2560.6,2560.3,3.899]
[1748221585636,3.90556292,2560.5,2560.3,3.899]
[1748221585837,14.1639304,2560.6,2560.3,3.899]
[1748221586443,11.905721,2560.4,2560.1,5.14705989]
[1748221586765,0.36483672,2560.3,2560.2,3.899]
[1748221586942,0.36483672,2560.3,2560.1,0.1]
[1748221587154,0.36483672,2560.3,2560.2,3.899]
[1748221587813,12.65560936,2560.8,2560.2,3.899]
[1748221588011,1.86798636,2560.7,2560.2,3.899]
[1748221588442,9.86798636,2560.7,2560.2,3.899]
[1748221589037,0.36478973,2560.6,2560.2,3.899]
[1748221590053,0.36478973,2560.5,2560.2,3.899]
[1748221591235,13.77317853,2560.7,2560.2,3.899]
[1748221591769,9.45236785,2560.6,2560.2,3.899]
[1748221592783,9.45236785,2560.6,2560.3,0.7834]
[1748221593154,3.9056261,2560.5,2560.4,3.899]
[1748221593351,0.36493376,2560.5,2560.4,3.899]
[1748221594443,4.27043516,2560.5,2560.1,0.1]
[1748221594658,2.04973573,2560.4,2560.2,3.899]
[1748221595156,1.45236785,2560.6,2560.2,3.899]
[1748221595883,0.7647,2560.9,2560.2,3.899]
[1748221596391,8.0,2560.6,2560.2,3.899]
[1748221596776,11.90539964,2560.6,2560.3,3.899]
[1748221597279,0.36490709,2560.5,2560.3,3.899]
[1748221597505,4.27039442,2560.5,2560.1,0.1]
[1748221597699,1.22703944,2560.4,2560.2,3.899]
[1748221598361,11.90541819,2560.6,2560.2,3.899]
[1748221598700,8.0,2560.6,2560.2,3.899]
[1748221599898,0.36492587,2560.5,2560.2,3.899]
[1748221601097,0.36492587,2560.4,2560.2,3.899]
[1748221601487,0.36492587,2560.4,2560.3,3.899]
[1748221601803,2.06352666,2560.4,2560.1,3.999]
[1748221602300,1.69860079,2560.4,2560.1,3.999]
[1748221603567,1.69860079,2560.4,2560.1,4.0]
[1748221603568,11.62862447,2560.4,2560.1,4.0]
[1748221603766,1.24388245,2560.3,2560.1,4.0]
[1748221604190,1.60883404,2560.3,2560.1,4.0]
[1748221604813,3.1147,2560.2,2560.1,0.1]
[1748221604977,11.1147,2560.2,2560.1,0.1]
[1748221605296,11.47965159,2560.2,2560.1,0.1]
[1748221605477,13.5242905,2560.2,2560.1,0.1]
[1748221606369,14.0742905,2560.2,2560.1,0.1]
[1748221606569,22.08423534,2560.2,2560.1,0.1]
[1748221606866,17.98023534,2560.2,2560.1,0.1]
[1748221607068,17.61528375,2560.2,2560.1,0.1]
[1748221608381,17.61528375,2560.2,2559.2,4.579]
[1748221608616,9.93106443,2559.7,2559.3,3.9]
[1748221608820,6.02425425,2559.7,2559.3,3.9]
[1748221609312,6.02425425,2559.7,2559.4,3.9]
[1748221609872,6.02425425,2559.7,2559.2,0.7919]
[1748221610073,6.02425425,2559.7,2559.3,3.9]
[1748221610274,7.09695643,2559.7,2559.3,3.9]
[1748221610575,7.09695643,2559.7,2559.4,3.9]
[1748221611392,1.07270218,2559.7,2559.4,3.9]
[1748221611614,8.0,2559.8,2559.4,3.9]
[1748221611810,0.8205,2560.6,2559.5,0.8038]
[1748221611976,10.75009149,2560.6,2559.5,0.8038]
[1748221612176,8.0,2560.5,2559.5,0.8038]
[1748221612385,8.0,2560.3,2559.5,0.8038]
[1748221613215,8.38731844,2560.3,2559.5,0.8038]
[1748221614111,12.29313628,2560.3,2559.5,0.8038]
[1748221614272,8.38731844,2560.3,2559.5,0.8038]
[1748221614721,12.29312842,2560.3,2559.5,0.8038]
[1748221614881,1.65840679,2560.2,2559.5,0.8038]
[1748221616421,1.65840679,2560.2,2559.3,0.46005989]
[1748221616422,9.93110232,2559.7,2559.4,3.9]
[1748221616778,6.02425425,2559.7,2559.4,3.9]
[1748221617821,9.93107544,2559.7,2559.4,3.9]
[1748221617982,9.93107544,2559.7,2559.3,1.21375989]
[1748221618330,1.99920754,2559.6,2559.4,3.9]
[1748221618498,9.99920754,2559.6,2559.4,3.9]
[1748221619917,12.33820754,2559.6,2559.1,1.1038]
[1748221620116,16.24511095,2559.6,2559.2,3.9]
[1748221620329,8.0,2559.4,2559.1,1.1038]
[1748221620531,2.42453041,2559.4,2559.1,0.3]
[1748221620720,2.339,2559.2,2559.1,0.3]
[1748221620930,15.07227108,2559.2,2559.1,0.3]
[1748221621417,15.62227108,2559.2,2559.1,0.3]
[1748221622333,12.73327108,2559.2,2559.1,0.3]
[1748221622514,16.24919904,2559.2,2559.1,0.3]
[1748221623333,12.34172796,2559.2,2559.1,0.3]
[1748221623537,11.29462871,2559.8,2559.1,4.2]
[1748221623837,10.8284,2559.8,2559.2,0.7937]
[1748221624027,6.80965425,2560.0,2559.2,0.7937]
[1748221624227,8.0,2559.9,2559.2,0.7937]
[1748221624631,6.80965425,2560.0,2559.2,0.7937]
[1748221624838,1.17271844,2560.3,2559.2,0.7937]
[1748221625020,7.19697269,2560.3,2559.4,0.7937]
[1748221625216,0.38731844,2560.3,2559.4,0.7937]
[1748221625544,6.02425425,2560.6,2559.4,0.7937]
[1748221625739,8.0,2560.3,2559.4,0.7937]
[1748221625939,6.02425425,2560.3,2559.4,0.7937]
[1748221626125,8.0,2560.2,2559.5,8.481]
[1748221626643,8.39266851,2560.3,2559.6,0.7767]
[1748221627139,8.0,2559.7,2559.6,3.901]
[1748221627545,1.18195627,2560.2,2559.6,3.901]
[1748221627722,8.0,2560.1,2559.7,0.7595]
[1748221627914,1.52062105,2560.0,2559.7,0.7595]
[1748221628245,1.52062105,2560.0,2559.6,3.901]
[1748221629342,1.52062105,2560.0,2559.4,0.8038]
[1748221629545,0.7994827,2560.4,2559.7,3.901]
[1748221629750,3.90555339,2560.5,2559.8,0.8038]
[1748221630045,9.93010019,2560.3,2559.8,0.8038]
[1748221630929,6.02425425,2560.3,2559.8,0.8038]
[1748221631253,8.0,2560.2,2559.8,0.8038]
[1748221631413,9.40242543,2560.2,2559.8,0.8038]
[1748221632453,6.02425425,2559.9,2559.4,0.802]
[1748221632770,14.02425425,2560.0,2559.4,4.703]
[1748221635257,17.93053522,2560.0,2559.4,4.703]
[1748221635461,1.79305352,2559.9,2559.4,4.703]
[1748221635929,2.59545352,2559.9,2559.4,0.802]
[1748221636129,2.59545352,2559.9,2559.5,3.9]
[1748221636342,6.50192261,2559.9,2559.6,3.9]
[1748221636541,2.59545352,2559.9,2559.6,3.9]
[1748221636744,1.66197078,2559.8,2559.6,3.9]
[1748221636966,14.02425425,2560.0,2559.6,3.9]
[1748221637763,10.17312543,2560.2,2559.6,3.9]
[1748221637954,6.02425425,2560.3,2559.7,0.8038]
[1748221638490,8.0,2560.2,2559.7,0.8038]
[1748221640187,9.93061456,2560.0,2559.4,3.9]
[1748221640383,17.93061456,2560.0,2559.4,3.9]
[1748221640778,10.26381442,2559.9,2559.4,3.9]
[1748221640981,8.0,2559.9,2559.5,0.8038]
[1748221641494,8.0,2560.2,2559.5,0.8038]
[1748221641865,2.339,2560.3,2559.5,0.8038]
[1748221642077,2.339,2560.3,2559.7,0.7937]
[1748221642281,0.39793426,2560.7,2559.9,0.7937]
[1748221642589,1.63435173,2560.7,2560.0,0.7937]
[1748221642792,8.0,2560.4,2560.0,0.7937]
[1748221642993,8.36325425,2560.6,2560.0,0.7937]
[1748221643154,8.0,2560.5,2560.0,0.7937]
[1748221643752,8.36325425,2560.3,2560.1,3.9]
[1748221644051,10.47218444,2560.3,2560.1,3.9]
[1748221644380,8.0,2560.2,2559.7,0.7788]
[1748221644596,8.0,2560.2,2559.8,3.9]
[1748221644597,6.02425425,2560.0,2559.8,3.9]
[1748221645291,8.36325425,2560.0,2559.7,0.7788]
[1748221645493,0.83632543,2559.9,2559.8,3.9]
[1748221647188,8.36325425,2560.0,2559.8,3.9]
[1748221651788,6.02425425,2560.2,2559.8,3.9]
[1748221651994,8.36325425,2560.2,2559.8,3.9]
[1748221652519,6.02425425,2560.2,2559.8,3.9]
[1748221653214,2.10893019,2560.3,2559.8,3.9]
[1748221653718,2.10893019,2560.3,2559.9,0.7816]
[1748221654221,0.36486219,2560.2,2559.9,0.7816]
[1748221655301,10.339,2560.4,2559.9,0.7816]
[1748221655503,12.98232543,2560.4,2559.9,0.7816]
[1748221655705,10.339,2560.4,2559.9,0.7816]
[1748221656220,12.409,2560.6,2559.9,0.7816]
[1748221656398,8.0,2560.5,2559.9,0.7816]
[1748221656598,8.36479524,2560.5,2559.9,0.7816]
[1748221656801,2.339,2560.4,2559.9,0.7816]
[1748221657001,8.36479524,2560.5,2559.9,0.7816]
[1748221657217,1.05684248,2560.4,2559.9,0.7816]
[1748221658017,10.339,2560.5,2559.9,0.7816]
[1748221658325,10.339,2560.5,2560.0,8.47]
[1748221658918,0.36476099,2560.4,2560.0,8.47]
[1748221659824,0.36476099,2560.4,2560.1,0.7552]
[1748221660123,0.36476099,2560.8,2560.1,0.7552]
[1748221660323,16.99839134,2560.8,2560.1,0.7552]
[1748221661032,2.339,2560.6,2560.1,0.7552]
[1748221662091,8.0,2560.7,2560.1,0.7552]
[1748221662308,8.63363035,2560.8,2560.1,0.7552]
[1748221662531,8.0,2560.7,2560.1,0.7552]
[1748221662730,8.0,2560.7,2560.2,3.9]
[1748221662936,9.66336304,2560.7,2560.2,3.9]
[1748221663301,2.339,2560.6,2560.2,3.9]
[1748221663631,2.339,2560.6,2560.1,0.7552]
[1748221663932,2.339,2560.6,2560.3,3.9]
[1748221664129,0.3988756,2560.9,2560.3,3.9]
[1748221664433,2.339,2561.1,2560.4,0.79455321]
[1748221664606,2.339,2561.0,2560.4,0.7555]
[1748221667856,2.339,2561.0,2560.1,0.46005989]
[1748221667857,2.339,2561.0,2560.5,8.459]
[1748221668155,2.339,2561.0,2560.6,0.759]
[1748221668359,2.339,2561.0,2560.6,4.658]
[1748221669955,2.339,2561.0,2560.6,0.759]
[1748221670155,2.339,2561.0,2560.7,3.899]
[1748221670156,9.43597187,2561.0,2560.7,3.899]
[1748221670535,9.43597187,2561.0,2560.6,0.759]
[1748221670858,9.43597187,2561.0,2560.7,3.899]
[1748221671534,9.43597187,2561.0,2560.6,0.759]
[1748221671535,2.339,2560.8,2560.6,3.899]
[1748221671745,3.74884974,2560.8,2560.6,3.899]
[1748221672054,2.339,2560.6,2560.5,3.899]
[1748221673960,8.0,2560.7,2560.5,3.899]
[1748221674256,2.339,2560.9,2560.6,0.771]
[1748221674557,8.36325425,2560.9,2560.7,3.899]
[1748221674770,16.27090056,2560.8,2560.4,0.8038]
[1748221675084,8.36325425,2560.6,2560.3,4.56]
[1748221675370,8.36325425,2560.6,2560.4,3.899]
[1748221678064,8.36325425,2560.6,2560.2,3.899]
[1748221678871,2.339,2560.6,2560.3,0.8038]
[1748221679077,0.36400796,2560.7,2560.3,0.8038]
[1748221679670,10.70300796,2560.9,2560.3,0.8038]
[1748221680665,2.339,2560.5,2560.0,0.46005989]
[1748221680975,2.339,2560.3,2560.0,0.46005989]
[1748221681152,2.339,2560.3,2560.1,3.899]
[1748221681352,8.36325425,2560.2,2560.1,3.899]
[1748221681854,8.36325425,2560.2,2559.7,0.7912]
[1748221682179,9.14025425,2560.2,2559.8,3.899]
[1748221682577,2.339,2560.2,2559.8,3.899]
[1748221683515,2.02688209,2560.3,2559.8,3.899]
[1748221683710,8.0,2560.5,2559.8,3.899]
[1748221684513,0.36446268,2560.4,2559.8,3.899]
[1748221685107,6.02425425,2560.3,2559.8,3.899]
[1748221685602,6.02425425,2560.3,2559.7,0.7912]
[1748221685808,6.02425425,2560.3,2559.8,8.459]
[1748221686035,7.8172362,2560.3,2559.8,8.459]
[1748221686318,6.02425425,2560.3,2559.8,8.459]
[1748221686517,9.16915425,2560.6,2559.8,8.459]
[1748221686681,8.36325425,2560.6,2559.9,0.7708]
[1748221686878,8.36325425,2560.9,2559.9,0.7708]
[1748221687091,9.30530931,2560.8,2560.0,0.8038]
[1748221687332,9.66970645,2560.8,2560.0,0.8038]
[1748221688839,0.36439714,2560.7,2560.0,0.8038]
[1748221690012,9.30530931,2560.8,2560.0,0.8038]
[1748221691038,13.21041399,2560.8,2560.0,0.8038]
[1748221691243,6.02425425,2560.6,2560.1,3.899]
[1748221691798,2.339,2560.5,2560.1,3.899]
[1748221692098,2.339,2560.5,2560.2,3.899]
[1748221696166,2.339,2560.9,2560.3,0.84285829]
[1748221696314,2.339,2560.9,2560.3,0.8038]
[1748221697063,8.36325425,2560.9,2560.3,0.8038]
[1748221697362,0.36450805,2560.8,2560.3,0.8038]
[1748221697860,8.36450805,2560.8,2560.3,0.8038]
[1748221698557,0.36450805,2560.7,2560.3,0.8038]
[1748221699742,8.36325425,2560.9,2560.3,0.8038]
[1748221699975,6.02425425,2560.6,2560.4,3.899]
[1748221701025,8.36325425,2560.6,2560.3,0.8038]
[1748221701249,8.0,2560.5,2560.4,3.899]
[1748221701445,10.339,2560.5,2560.1,4.549]
[1748221701649,6.02425425,2560.3,2560.2,3.899]
[1748221702077,2.00115396,2560.4,2560.2,3.899]
[1748221702342,2.00115396,2560.4,2559.8,0.8038]
[1748221702548,6.77595425,2560.3,2559.9,3.899]
[1748221702887,1.11161082,2560.2,2559.9,3.899]
[1748221703042,6.02425425,2560.3,2559.9,3.899]
[1748221703641,2.339,2560.2,2559.6,0.8024]
[1748221703871,10.339,2560.2,2559.6,5.3514]
[1748221704068,0.36483506,2560.1,2559.7,3.899]
[1748221704245,6.02425425,2560.0,2559.6,0.8024]
[1748221704462,8.16904123,2560.0,2559.7,3.899]
[1748221705190,12.07532267,2560.0,2559.4,4.549]
[1748221705354,8.16904123,2560.0,2559.7,3.899]
[1748221705684,8.16904123,2560.0,2559.6,3.899]
[1748221706354,0.36461423,2559.9,2559.6,3.899]
[1748221706892,1.45753301,2559.9,2559.6,3.899]
[1748221707064,5.36397799,2559.9,2559.4,4.549]
[1748221707264,1.45753301,2559.9,2559.5,3.899]
[1748221707692,12.68734754,2559.8,2559.2,4.549]
[1748221707863,1.61192663,2559.7,2559.5,3.9]
[1748221708390,1.61192663,2559.7,2559.1,0.3]
[1748221708391,11.7139,2559.6,2559.1,0.3]
[1748221708589,4.73237108,2559.2,2559.1,0.3]
[1748221708793,0.8249,2559.2,2559.1,0.3]
[1748221708993,13.09679806,2559.2,2559.1,0.3]
[1748221709297,18.50614338,2559.2,2559.1,0.3]
[1748221709796,15.05558191,2558.8,2558.7,1.50129367]
[1748221710093,14.83275425,2558.8,2558.7,0.88888482]
[1748221710396,17.30513449,2558.8,2558.7,0.88888482]
[1748221710768,21.2132164,2558.8,2558.7,0.88888482]
[1748221711396,20.84878942,2558.8,2558.7,0.88888482]
[1748221712261,21.39878942,2558.8,2558.7,0.88888482]
[1748221712456,9.3016,2558.7,2558.1,0.1]
[1748221712662,6.02425425,2558.2,2558.1,0.1]
[1748221713104,6.83415425,2558.2,2558.1,0.1]
[1748221713266,18.74315276,2558.2,2558.1,0.1]
[1748221713603,8.7626,2558.1,2557.0,7.60942525]
[1748221713771,6.02425425,2557.5,2557.0,7.60942525]
[1748221714107,6.02425425,2557.5,2556.8,0.8009]
[1748221714108,0.62630223,2557.5,2556.8,5.3519]
[1748221714261,0.7626,2557.6,2556.8,0.8009]
[1748221714468,6.78685425,2557.6,2556.8,4.7019]
[1748221714686,14.02425425,2557.9,2557.3,0.8009]
[1748221716064,17.93374721,2557.9,2557.3,0.8009]
[1748221716254,17.93374721,2557.9,2555.9,0.39968795]
[1748221716255,8.0,2557.5,2556.9,0.7632]
[1748221716460,1.40242543,2557.4,2556.9,0.7632]
[1748221716656,8.0,2557.5,2557.0,3.901]
[1748221717069,0.7956,2557.2,2556.7,4.552]
[1748221717299,12.70612713,2557.2,2556.7,4.552]
[1748221717512,12.70612713,2557.2,2556.5,3.901]
[1748221717799,10.73038138,2557.2,2556.5,3.901]
[1748221719010,14.81985425,2557.2,2556.3,0.8038]
[1748221719320,1.15140077,2558.2,2557.2,0.7631]
[1748221719482,6.02425425,2558.0,2557.2,0.7631]
[1748221722503,6.02425425,2558.0,2557.3,3.903]
[1748221723914,6.02425425,2558.0,2557.1,4.853]
[1748221723915,6.02425425,2557.4,2557.1,0.3]
[1748221724101,6.02425425,2557.6,2557.1,0.3]
[1748221724306,6.02425425,2557.6,2557.1,1.1038]
[1748221724830,6.80955425,2557.9,2557.1,1.1038]
[1748221725634,8.0,2558.0,2557.1,1.1038]
[1748221725844,8.0,2558.0,2557.1,0.3]
[1748221726137,4.71701934,2558.5,2557.2,0.7588]
[1748221726422,4.71701934,2558.5,2557.1,0.3]
[1748221726423,8.3908648,2558.4,2557.3,9.2158]
[1748221726625,2.339,2558.3,2557.3,9.2158]
[1748221726836,12.69910678,2558.4,2557.3,9.2158]
[1748221727201,12.27210063,2558.3,2557.3,9.2158]
[1748221727425,6.0153728,2558.2,2557.3,9.2158]
[1748221727722,6.0153728,2558.2,2557.4,3.903]
[1748221727893,2.10624376,2558.2,2557.4,3.903]
[1748221728616,6.01528842,2558.2,2557.4,3.903]
[1748221728923,0.7875,2557.9,2557.3,5.3038]
[1748221729104,0.68117543,2557.8,2557.4,3.903]
[1748221730092,6.02425425,2557.7,2557.1,0.3]
[1748221731629,0.68117543,2557.8,2557.2,0.8006]
[1748221733227,8.0,2558.0,2557.2,0.8006]
[1748221733430,2.10624376,2558.2,2557.2,0.8006]
[1748221733737,8.36325425,2558.3,2557.2,0.8006]
[1748221734027,0.79033701,2558.4,2557.2,0.8006]
[1748221734203,8.79033701,2558.4,2557.2,0.8006]
[1748221734407,14.81459126,2558.4,2557.2,0.8006]
[1748221734735,9.95014436,2558.3,2557.2,0.8006]
[1748221735230,1.95014436,2558.3,2557.2,0.8006]
[1748221735405,9.95014436,2558.3,2557.2,0.8006]
[1748221735726,6.02425425,2557.8,2557.2,0.8006]
[1748221735927,6.02425425,2557.8,2557.3,3.904]
[1748221736106,8.0,2558.2,2557.4,0.7974]
[1748221736629,8.0,2556.9,2556.6,0.61240885]
[1748221736790,3.91088309,2557.0,2556.6,0.61240885]
[1748221736791,17.93554614,2556.7,2556.6,0.61240885]
[1748221736994,8.0,2556.6,2556.0,0.7974]
[1748221738329,6.02425425,2557.0,2556.0,0.7974]
[1748221738496,8.91495543,2556.9,2556.0,0.7974]
[1748221738696,8.91495543,2556.9,2556.8,1.06221718]
[1748221738918,9.27868666,2556.9,2556.8,1.06221718]
[1748221739640,1.27868666,2556.9,2556.8,1.06221718]
[1748221739855,0.38847993,2557.0,2556.8,1.06221718]
[1748221740025,3.9108456,2557.0,2556.8,1.06221718]
[1748221740229,3.91091717,2557.0,2556.8,1.06221718]
[1748221740545,8.36373123,2557.0,2556.8,1.06221718]
[1748221740742,3.91098595,2556.9,2556.8,1.06221718]
[1748221741061,14.29193528,2556.9,2556.8,1.06221718]
[1748221741444,14.65566651,2556.9,2556.8,1.06221718]
[1748221742618,9.98228056,2556.9,2556.8,1.06221718]
[1748221743020,9.61854933,2556.9,2556.8,1.06221718]
[1748221743644,1.61854933,2556.9,2556.8,1.06221718]
[1748221743845,6.83025425,2557.5,2556.8,1.06221718]
[1748221744164,0.363774,2557.4,2556.9,4.6877]
[1748221745080,0.39537633,2557.6,2556.9,4.6877]
[1748221745260,9.15431679,2557.6,2556.9,4.6877]
[1748221745461,0.363774,2557.7,2557.0,0.7827]
[1748221745661,0.363774,2557.7,2557.2,0.7827]
[1748221745833,6.02425425,2557.9,2557.2,0.7827]
[1748221746245,8.0,2557.8,2557.2,0.7827]
[1748221746853,1.8297336,2557.8,2557.2,0.7827]
[1748221747051,6.41158877,2557.9,2557.2,0.7827]
[1748221747835,1.22891444,2558.1,2557.2,0.7827]
[1748221748035,6.02425425,2558.3,2557.2,0.7827]
[1748221748335,8.0,2558.2,2557.2,0.7827]
[1748221748975,11.90901345,2558.2,2557.2,0.7827]
[1748221749172,6.02425425,2557.7,2557.3,4.546]
[1748221749472,6.02425425,2557.4,2557.3,8.45]
[1748221749657,0.60242543,2557.6,2557.3,8.45]
[1748221750539,6.02425425,2557.7,2557.3,8.45]
[1748221752757,6.02425425,2557.7,2557.3,4.546]
[1748221753108,6.02425425,2557.7,2557.2,5.3277]
[1748221753109,6.02425425,2557.4,2557.2,5.3277]
[1748221753385,6.02425425,2557.4,2557.2,8.449]
[1748221754692,8.36367011,2557.8,2557.2,8.449]
[1748221754980,1.63636701,2557.7,2557.2,3.904]
[1748221756985,6.02425425,2557.5,2557.1,4.545]
[1748221757184,6.02425425,2557.5,2557.2,3.904]
[1748221759326,2.339,2557.6,2557.2,3.904]
[1748221759518,8.36325425,2557.6,2557.2,3.904]
[1748221759837,6.02425425,2557.6,2557.2,3.904]
[1748221760040,0.36390485,2557.7,2557.3,0.7652]
[1748221760243,16.36325425,2557.9,2557.3,0.7652]
[1748221760849,8.8254,2558.0,2557.3,0.7652]
[1748221761345,9.18926641,2558.0,2557.3,0.7652]
[1748221761749,6.02425425,2557.8,2557.3,0.7652]
[1748221762113,6.58871368,2557.8,2557.4,8.449]
[1748221763143,6.58871368,2557.8,2557.5,3.904]
[1748221766069,6.58871368,2557.8,2557.3,5.3102]
[1748221766274,6.58871368,2557.8,2557.4,3.904]
[1748221767810,6.58871368,2557.8,2557.5,3.904]
[1748221768009,0.92917878,2557.7,2557.5,3.904]
[1748221768540,2.70307408,2557.9,2557.5,3.904]
[1748221768541,0.36407408,2557.9,2557.5,3.904]
[1748221768749,0.36407408,2557.9,2557.6,0.7822]
[1748221769150,0.39498595,2558.2,2557.6,0.7822]
[1748221769311,6.02425425,2558.3,2557.6,0.7822]
[1748221769513,8.36325425,2558.3,2557.6,0.7822]
[1748221770043,2.02720619,2558.2,2557.6,0.7822]
[1748221770250,0.36462157,2558.1,2557.6,0.7822]
[1748221771560,4.74681321,2558.2,2557.6,0.7822]
[1748221773768,0.36492571,2558.1,2557.6,0.7822]
[1748221774170,0.36492571,2558.1,2557.6,1.7822]
[1748221774968,4.74681321,2558.2,2557.6,1.7822]
[1748221775445,6.02425425,2558.0,2557.6,1.7822]
[1748221775651,6.02425425,2557.7,2557.6,6.3272]
[1748221775834,6.02425425,2557.7,2557.6,10.2312]
[1748221776032,0.36498464,2558.0,2557.6,10.2312]
[1748221776340,1.62538914,2558.0,2557.6,10.2312]
[1748221776652,6.02425425,2557.8,2557.7,3.904]
[1748221776965,9.12255425,2557.8,2557.6,1.0]
[1748221777553,3.90976267,2557.7,2557.6,1.0]
[1748221777771,6.24876267,2557.7,2557.6,1.0]
[1748221778077,8.30797518,2557.7,2557.6,1.0]
[1748221778231,4.39821251,2557.7,2557.6,1.0]
[1748221779130,8.30797518,2557.7,2557.6,1.0]
[1748221779351,2.05921251,2557.7,2557.6,1.0]
[1748221779635,4.39821251,2557.7,2557.6,1.0]
[1748221780468,8.30797518,2557.7,2557.6,1.0]
[1748221781570,4.39821251,2557.7,2557.6,1.0]
[1748221782068,16.85797518,2557.7,2557.6,1.0]
[1748221787145,13.73931251,2557.7,2556.8,1.86601718]
[1748221787487,6.02425425,2557.1,2556.8,1.06221718]
[1748221788201,12.27400815,2557.1,2556.8,1.06221718]
[1748221788408,12.27400815,2557.1,2556.8,4.96621718]
[1748221788618,3.91086994,2557.0,2556.8,4.96621718]
[1748221788769,0.7911,2557.4,2556.8,1.06221718]
[1748221789874,2.339,2557.3,2556.8,1.06221718]